[Event "FIDE Chesscom Grand Swiss 2019"]
[Site "Douglas-Isle of Man"]
[Date "2019.10.15"]
[Round "6.6"]
[White "Sethuraman, S.P."]
[Black "Rodshtein, Maxim"]
[Result "1-0"]
[ECO "B80"]
[WhiteElo "2624"]
[BlackElo "2684"]
[Annotator "RC"]
[PlyCount "99"]
[EventDate "2019.10.10"]
[EventType "swiss"]
[EventCountry "GBR"]
[SourceTitle "playchess.com"]
[Source "ChessBase"]
[SourceQuality "1"]
[TimeControl "40/6000+30:20/3000+30:900+30"]

1. e4 {[%emt 0:00:00]} c5 {[%emt 0:00:11]} 2. Nf3 {[%emt 0:00:10]} d6 {[%emt 0:00:08]} 3. d4 {[%emt 0:01:19]} cxd4 {[%emt 0:00:07]} 4. Nxd4 {[%emt 0:00:12]} Nf6 {[%emt 0:00:06]} 5. f3 {[%emt 0:02:45]} Nc6 {[%emt 0:01:26]} 6. Nc3 {[%emt 0:02:55]} e6 {[%emt 0:03:36]} 7. Be3 {[%emt 0:00:46]} Be7 {[%emt 0:01:23]} 8. Qd2 {[%emt 0:00:08]} a6 {[%emt 0:02:25]} 9. g4 {[%emt 0:08:42]} h6 {[%emt 0:22:16]} 10. O-O-O {[%emt 0:04:15]} Nxd4 {[%emt 0:01:05]} 11. Qxd4 {[%emt 0:07:14]} Qc7 {[%emt 0:03:47]} 12. h4 {[%emt 0:04:38]} b5 {[%emt 0:00:43]} 13. Be2 {[%emt 0:06:04]} e5 {[%emt 0:14:07]} 14. Qd2 {[%emt 0:02:18]} Be6 {[%emt 0:00:09]} 15. g5 {[%emt 0:08:13]} Nh5 {[%emt 0:00:48]} 16. Rdg1 {[%emt 0:08:22]} Rc8 {[%emt 0:01:06]} 17. Nd5 {[%emt 0:08:01]} Bxd5 {[%emt 0:00:36]} 18. exd5 {[%emt 0:00:05]} g6 {[%emt 0:02:52]} 19. gxh6 {[%emt 0:11:09]} O-O {[%emt 0:01:42]} 20. Bd3 {[%emt 0:03:22]} Kh7 {[%emt 0:02:57]} 21. Kb1 {[%emt 0:02:04]} f5 {[%emt 0:06:56]} 22. Qg2 {[%emt 0:06:04]} Rg8 {[%emt 0:15:09]} 23. Qh3 {[%emt 0:00:04]} Rcf8 {[%emt 0:04:25]} 24. Rxg6 {[%emt 0:04:05]} Kxg6 {[%emt 0:01:01]} 25. Qg4+ {[%emt 0:10:36]} Kh7 {[%emt 0:00:08]} 26. Bxf5+ {[%emt 0:00:05]} Kh8 {[%emt 0:00:04]} 27. Qxh5 {[%emt 0:00:05]} Bd8 {[%emt 0:02:20]} 28. Bg6 {[%emt 0:05:11]} Rf6 {[%emt 0:02:02]} 29. Be4 {[%emt 0:02:02]} Qf7 {[%emt 0:00:53]} 30. Qxf7 {[%emt 0:00:06]} Rxf7 {[%emt 0:00:03]} 31. a4 {[%emt 0:00:17]} bxa4 {[%emt 0:01:05]} 32. Ka2 {[%emt 0:00:38]} Rb7 {[%emt 0:02:00]} 33. Rh2 {[%emt 0:00:41]} a5 {[%emt 0:03:18]} 34. c3 {[%emt 0:00:35]} Rb3 {[%emt 0:04:02]} 35. Bc2 {[%emt 0:00:43]} Rb7 {[%emt 0:02:32]} 36. Ka3 {[%emt 0:00:34]} Rg3 {[%emt 0:05:14]} 37. Be4 {[%emt 0:00:18]} Bb6 {[%emt 0:00:25]} 38. Bg5 {[%emt 0:01:38]} Rg1 {[%emt 0:00:30]} 39. Bf6+ {[%emt 0:00:38]} Kg8 {[%emt 0:00:05]} 40. h7+ {[%emt 0:01:39]} Rxh7 {[%emt 0:00:17]} 41. Bxh7+ {[%emt 0:50:05]} Kxh7 {[%emt 0:51:50]} 42. Kxa4 {[%emt 0:00:00]} Rd1 {[%emt 0:00:00]} 43. c4 {[%emt 0:00:00]} Rd3 {[%emt 0:00:00]} 44. Kb5 {[%emt 0:00:00]} Rb3+ {[%emt 0:00:00]} 45. Kc6 {[%emt 0:00:00]} Bc5 {[%emt 0:00:00]} 46. Bd8 {[%emt 0:00:00]} a4 {[%emt 0:00:00]} 47. Bc7 {[%emt 0:00:00]} Bd4 {[%emt 0:00:00]} 48. Bxd6 {[%emt 0:00:00]} Bxb2 {[%emt 0:00:00]} 49. Rxb2 {[%emt 0:00:00]} Rxb2 {[%emt 0:00:00]} 50. Bc5 {[%emt 0:00:00]} 1-0

[Event "FIDE Chesscom Grand Swiss 2019"]
[Site "Douglas-Isle of Man"]
[Date "2019.10.15"]
[Round "6.7"]
[White "Narayanan.S.L"]
[Black "Berkes, Ferenc"]
[Result "1/2-1/2"]
[ECO "C41"]
[WhiteElo "2611"]
[BlackElo "2667"]
[Annotator "RC"]
[PlyCount "62"]
[EventDate "2019.10.10"]
[EventType "swiss"]
[EventCountry "GBR"]
[SourceTitle "playchess.com"]
[Source "ChessBase"]
[SourceQuality "1"]
[TimeControl "40/6000+30:20/3000+30:900+30"]

1. e4 {[%emt 0:00:00]} d6 {[%emt 0:00:00]} 2. d4 {[%emt 0:00:00]} Nf6 {[%emt 0:00:00]} 3. Nc3 {[%emt 0:00:00]} e5 {[%emt 0:00:02]} 4. Nf3 {[%emt 0:00:22]} Nbd7 {[%emt 0:00:07]} 5. Bc4 {[%emt 0:00:21]} Be7 {[%emt 0:00:08]} 6. O-O {[%emt 0:00:11]} O-O {[%emt 0:00:07]} 7. a4 {[%emt 0:02:22]} c6 {[%emt 0:00:10]} 8. h3 {[%emt 0:06:52]} Re8 {[%emt 0:00:50]} 9. Re1 {[%emt 0:04:10]} h6 {[%emt 0:00:24]} 10. Be3 {[%emt 0:04:12]} exd4 {[%emt 0:01:52]} 11. Bxd4 {[%emt 0:00:47]} Nf8 {[%emt 0:02:11]} 12. a5 {[%emt 0:02:32]} Be6 {[%emt 0:01:31]} 13. Qd3 {[%emt 0:08:34]} Qc7 {[%emt 0:06:02]} 14. Bb3 {[%emt 0:21:59]} N6d7 {[%emt 0:11:43]} 15. Ne2 {[%emt 0:02:58]} Bxb3 {[%emt 0:17:54]} 16. Qxb3 {[%emt 0:06:37]} Ne6 {[%emt 0:00:07]} 17. c3 {[%emt 0:06:21]} Ne5 {[%emt 0:03:04]} 18. Nxe5 {[%emt 0:06:04]} dxe5 {[%emt 0:00:14]} 19. Be3 {[%emt 0:00:05]} Bg5 {[%emt 0:00:18]} 20. Bxg5 {[%emt 0:00:13]} hxg5 {[%emt 0:00:13]} 21. Ng3 {[%emt 0:00:16]} Rad8 {[%emt 0:07:35]} 22. Red1 {[%emt 0:08:10]} g6 {[%emt 0:14:07]} 23. Nf1 {[%emt 0:03:58]} b5 {[%emt 0:02:35]} 24. axb6 {[%emt 0:00:06]} axb6 {[%emt 0:00:07]} 25. Ne3 {[%emt 0:00:17]} Kg7 {[%emt 0:02:02]} 26. Qa4 {[%emt 0:04:16]} b5 {[%emt 0:05:28]} 27. Qc2 {[%emt 0:00:04]} Rxd1+ {[%emt 0:00:46]} 28. Rxd1 {[%emt 0:00:06]} Rd8 {[%emt 0:00:08]} 29. Ng4 {[%emt 0:05:51]} Rxd1+ {[%emt 0:03:30]} 30. Qxd1 {[%emt 0:00:05]} f6 {[%emt 0:00:16]} 31. b4 {[%emt 0:00:23]} Nd8 {[%emt 0:02:34]} 1/2-1/2

[Event "FIDE Chesscom Grand Swiss 2019"]
[Site "Douglas-Isle of Man"]
[Date "2019.10.15"]
[Round "6.8"]
[White "Gelfand, Boris"]
[Black "Adhiban, B.."]
[Result "1/2-1/2"]
[ECO "D12"]
[WhiteElo "2686"]
[BlackElo "2639"]
[Annotator "RC"]
[PlyCount "91"]
[EventDate "2019.10.10"]
[EventType "swiss"]
[EventCountry "GBR"]
[SourceTitle "playchess.com"]
[Source "ChessBase"]
[SourceQuality "1"]
[TimeControl "40/6000+30:20/3000+30:900+30"]

1. d4 {[%emt 0:00:00]} d5 {[%emt 0:00:00]} 2. c4 {[%emt 0:00:00]} c6 {[%emt 0:00:00]} 3. Nf3 {[%emt 0:00:00]} Nf6 {[%emt 0:00:00]} 4. e3 {[%emt 0:00:00]} Bf5 {[%emt 0:00:00]} 5. Nc3 {[%emt 0:00:06]} e6 {[%emt 0:00:00]} 6. Nh4 {[%emt 0:00:16]} Be4 {[%emt 0:00:04]} 7. f3 {[%emt 0:00:03]} Bg6 {[%emt 0:00:08]} 8. Qb3 {[%emt 0:00:22]} Qc7 {[%emt 0:00:06]} 9. Bd2 {[%emt 0:00:09]} Be7 {[%emt 0:00:05]} 10. Rc1 {[%emt 0:02:22]} Nbd7 {[%emt 0:00:05]} 11. g3 {[%emt 0:08:30]} dxc4 {[%emt 0:00:06]} 12. Bxc4 {[%emt 0:00:47]} a6 {[%emt 0:00:02]} 13. a4 {[%emt 0:15:16]} c5 {[%emt 0:03:56]} 14. O-O {[%emt 0:08:00]} cxd4 {[%emt 0:03:43]} 15. exd4 {[%emt 0:02:32]} Qd6 {[%emt 0:00:04]} 16. Be3 {[%emt 0:08:19]} Nb6 {[%emt 0:00:06]} 17. Nxg6 {[%emt 0:04:58]} hxg6 {[%emt 0:00:07]} 18. Ne4 {[%emt 0:01:25]} Qd8 {[%emt 0:00:02]} 19. Be2 {[%emt 0:07:13]} Nbd5 {[%emt 0:05:29]} 20. Bf2 {[%emt 0:06:50]} Rb8 {[%emt 0:06:12]} 21. Nc5 {[%emt 0:03:14]} O-O {[%emt 0:05:33]} 22. Rc2 {[%emt 0:02:16]} a5 {[%emt 0:19:38]} 23. Qb5 {[%emt 0:03:36]} Nb4 {[%emt 0:03:52]} 24. Rcc1 {[%emt 0:04:25]} b6 {[%emt 0:01:10]} 25. Nd3 {[%emt 0:00:24]} Nfd5 {[%emt 0:10:11]} 26. Ne5 {[%emt 0:02:04]} Bf6 {[%emt 0:00:31]} 27. Qd7 {[%emt 0:07:31]} Rc8 {[%emt 0:10:21]} 28. Bb5 {[%emt 0:00:58]} Rc7 {[%emt 0:04:03]} 29. Rxc7 {[%emt 0:00:54]} Qxc7 {[%emt 0:14:23]} 30. Qxc7 {[%emt 0:01:53]} Nxc7 {[%emt 0:00:01]} 31. Be2 {[%emt 0:00:26]} Ncd5 {[%emt 0:04:42]} 32. Rc1 {[%emt 0:00:24]} Na2 {[%emt 0:05:19]} 33. Rc4 {[%emt 0:03:31]} Nab4 {[%emt 0:00:04]} 34. h4 {[%emt 0:03:22]} Be7 {[%emt 0:03:21]} 35. f4 {[%emt 0:02:36]} Rd8 {[%emt 0:00:46]} 36. Kf1 {[%emt 0:02:39]} Bd6 {[%emt 0:00:37]} 37. Bf3 {[%emt 0:00:42]} Ne7 {[%emt 0:02:30]} 38. Be4 {[%emt 0:03:09]} Kf8 {[%emt 0:03:23]} 39. Ke2 {[%emt 0:01:16]} Ke8 {[%emt 0:00:12]} 40. Rc1 {[%emt 0:02:24]} Rb8 {[%emt 0:04:01]} 41. Be1 {[%emt 0:54:23]} Ned5 {[%emt 0:16:07]} 42. Bd2 {[%emt 0:00:00]} Bxe5 {[%emt 0:02:23]} 43. fxe5 {[%emt 0:00:00]} Kd7 {[%emt 0:00:34]} 44. Rf1 {[%emt 0:00:00]} Ke7 {[%emt 0:00:12]} 45. Rc1 {[%emt 0:00:00]} Kd7 {[%emt 0:00:45]} 46. Rf1 {[%emt 0:00:00]} 1/2-1/2

[Event "FIDE Chesscom Grand Swiss 2019"]
[Site "Douglas-Isle of Man"]
[Date "2019.10.15"]
[Round "6.8"]
[White "Saric, Ivan"]
[Black "Vovk, Andriy"]
[Result "1-0"]
[ECO "B67"]
[WhiteElo "2667"]
[BlackElo "2618"]
[Annotator "RC"]
[PlyCount "67"]
[EventDate "2019.10.10"]
[EventType "swiss"]
[EventCountry "GBR"]
[SourceTitle "playchess.com"]
[Source "ChessBase"]
[SourceQuality "1"]
[TimeControl "40/6000+30:20/3000+30:900+30"]

1. e4 {[%emt 0:00:00]} c5 {[%emt 0:00:08]} 2. Nf3 {[%emt 0:00:00]} Nc6 {[%emt 0:01:00]} 3. d4 {[%emt 0:00:00]} cxd4 {[%emt 0:00:35]} 4. Nxd4 {[%emt 0:00:03]} Nf6 {[%emt 0:00:19]} 5. Nc3 {[%emt 0:00:05]} d6 {[%emt 0:00:48]} 6. Bg5 {[%emt 0:00:10]} e6 {[%emt 0:00:19]} 7. Qd2 {[%emt 0:00:15]} a6 {[%emt 0:00:42]} 8. O-O-O {[%emt 0:00:10]} Bd7 {[%emt 0:01:12]} 9. f4 {[%emt 0:00:11]} b5 {[%emt 0:01:01]} 10. Bxf6 {[%emt 0:00:06]} gxf6 {[%emt 0:00:12]} 11. Kb1 {[%emt 0:00:10]} Qb6 {[%emt 0:00:55]} 12. Nce2 {[%emt 0:01:51]} h5 {[%emt 0:02:07]} 13. h4 {[%emt 0:00:24]} O-O-O {[%emt 0:07:03]} 14. Rh3 {[%emt 0:03:02]} Kb8 {[%emt 0:04:12]} 15. Nxc6+ {[%emt 0:05:21]} Bxc6 {[%emt 0:01:26]} 16. Rb3 {[%emt 0:02:24]} d5 {[%emt 0:28:45]} 17. Nd4 {[%emt 0:02:49]} Bb7 {[%emt 0:13:21]} 18. e5 {[%emt 0:02:55]} fxe5 {[%emt 0:04:16]} 19. fxe5 {[%emt 0:00:08]} Rg8 {[%emt 0:00:09]} 20. a4 {[%emt 0:10:07]} b4 {[%emt 0:00:35]} 21. g3 {[%emt 0:00:58]} Rg4 {[%emt 0:13:13]} 22. Be2 {[%emt 0:03:06]} Re4 {[%emt 0:00:22]} 23. Bxh5 {[%emt 0:04:00]} Rd7 {[%emt 0:01:13]} 24. Rf3 {[%emt 0:09:39]} Bg7 {[%emt 0:07:09]} 25. Rxf7 {[%emt 0:12:24]} Rxf7 {[%emt 0:00:36]} 26. Bxf7 {[%emt 0:00:04]} Bxe5 {[%emt 0:04:12]} 27. Nxe6 {[%emt 0:13:48]} b3 {[%emt 0:06:02]} 28. cxb3 {[%emt 0:00:10]} Bxg3 {[%emt 0:02:50]} 29. Nf8 {[%emt 0:09:09]} Re7 {[%emt 0:08:15]} 30. Bxd5 {[%emt 0:01:03]} Bc8 {[%emt 0:00:05]} 31. h5 {[%emt 0:01:22]} Bg4 {[%emt 0:00:44]} 32. Qg5 {[%emt 0:03:36]} Qb4 {[%emt 0:00:12]} 33. Ne6 {[%emt 0:02:56]} Re8 {[%emt 0:01:43]} 34. Nd4 {[%emt 0:01:11]} 1-0

[Event "FIDE Chesscom Grand Swiss 2019"]
[Site "Douglas-Isle of Man"]
[Date "2019.10.15"]
[Round "6.9"]
[White "Ganguly, Surya Shekhar"]
[Black "Jobava, Baadur"]
[Result "1-0"]
[ECO "B13"]
[WhiteElo "2658"]
[BlackElo "2617"]
[Annotator "RC"]
[PlyCount "69"]
[EventDate "2019.10.10"]
[EventType "swiss"]
[EventCountry "GBR"]
[SourceTitle "playchess.com"]
[Source "ChessBase"]
[SourceQuality "1"]
[TimeControl "40/6000+30:20/3000+30:900+30"]

1. e4 {[%emt 0:00:00]} c6 {[%emt 0:00:00]} 2. d4 {[%emt 0:00:00]} d5 {[%emt 0:00:00]} 3. exd5 {[%emt 0:00:05]} cxd5 {[%emt 0:00:00]} 4. Bd3 {[%emt 0:00:09]} Nc6 {[%emt 0:00:50]} 5. c3 {[%emt 0:00:09]} e6 {[%emt 0:01:31]} 6. Bf4 {[%emt 0:00:48]} Nge7 {[%emt 0:02:00]} 7. Nd2 {[%emt 0:00:10]} f6 {[%emt 0:00:57]} 8. Qe2 {[%emt 0:00:26]} Bd7 {[%emt 0:01:11]} 9. Nb3 {[%emt 0:06:33]} b6 {[%emt 0:13:09]} 10. h4 {[%emt 0:04:09]} a5 {[%emt 0:05:44]} 11. Nd2 {[%emt 0:03:28]} a4 {[%emt 0:00:58]} 12. a3 {[%emt 0:00:31]} h5 {[%emt 0:00:11]} 13. O-O-O {[%emt 0:12:41]} Kf7 {[%emt 0:05:42]} 14. Nh3 {[%emt 0:10:10]} b5 {[%emt 0:37:36]} 15. Nf3 {[%emt 0:02:56]} Kg8 {[%emt 0:13:15]} 16. Kb1 {[%emt 0:02:27]} Na5 {[%emt 0:13:42]} 17. Bxb5 {[%emt 0:09:23]} Nc4 {[%emt 0:08:17]} 18. Ka1 {[%emt 0:02:47]} Ng6 {[%emt 0:02:38]} 19. Bxc4 {[%emt 0:04:11]} dxc4 {[%emt 0:00:05]} 20. Qxc4 {[%emt 0:00:15]} Rc8 {[%emt 0:01:29]} 21. Qd3 {[%emt 0:01:14]} Qe8 {[%emt 0:00:27]} 22. Rhe1 {[%emt 0:05:33]} Bb5 {[%emt 0:00:04]} 23. Qe4 {[%emt 0:01:28]} Bc4 {[%emt 0:00:56]} 24. d5 {[%emt 0:03:22]} e5 {[%emt 0:00:28]} 25. Nd2 {[%emt 0:05:16]} Bb5 {[%emt 0:00:05]} 26. Bg3 {[%emt 0:00:07]} Bd7 {[%emt 0:00:35]} 27. f4 {[%emt 0:00:57]} f5 {[%emt 0:00:57]} 28. Qb1 {[%emt 0:05:33]} e4 {[%emt 0:00:19]} 29. d6 {[%emt 0:00:07]} Rh6 {[%emt 0:00:46]} 30. Ng5 {[%emt 0:00:41]} Nh8 {[%emt 0:00:03]} 31. Ndxe4 {[%emt 0:03:48]} fxe4 {[%emt 0:00:05]} 32. Qa2+ {[%emt 0:00:04]} Be6 {[%emt 0:01:25]} 33. d7 {[%emt 0:00:15]} Qxd7 {[%emt 0:00:33]} 34. Rxd7 {[%emt 0:00:12]} Bxa2 {[%emt 0:00:02]} 35. Kxa2 {[%emt 0:00:10]} 1-0

[Event "FIDE Chesscom Grand Swiss 2019"]
[Site "Douglas-Isle of Man"]
[Date "2019.10.15"]
[Round "6.12"]
[White "Motylev, Alexander"]
[Black "Nihal Sarin"]
[Result "1/2-1/2"]
[ECO "C54"]
[WhiteElo "2651"]
[BlackElo "2610"]
[Annotator "RC"]
[PlyCount "87"]
[EventDate "2019.10.10"]
[EventType "swiss"]
[EventCountry "GBR"]
[SourceTitle "playchess.com"]
[Source "ChessBase"]
[SourceQuality "1"]
[TimeControl "40/6000+30:20/3000+30:900+30"]

1. e4 {[%emt 0:00:00]} e5 {[%emt 0:00:12]} 2. Nf3 {[%emt 0:00:05]} Nc6 {[%emt 0:00:06]} 3. Bc4 {[%emt 0:00:14]} Bc5 {[%emt 0:00:12]} 4. d3 {[%emt 0:00:19]} Nf6 {[%emt 0:00:07]} 5. c3 {[%emt 0:00:13]} O-O {[%emt 0:00:12]} 6. Nbd2 {[%emt 0:00:12]} d6 {[%emt 0:01:16]} 7. O-O {[%emt 0:00:51]} a6 {[%emt 0:02:38]} 8. Bb3 {[%emt 0:00:33]} Ba7 {[%emt 0:00:39]} 9. h3 {[%emt 0:00:19]} Ne7 {[%emt 0:09:47]} 10. Re1 {[%emt 0:00:56]} Ng6 {[%emt 0:00:56]} 11. Nf1 {[%emt 0:00:13]} h6 {[%emt 0:10:10]} 12. Ng3 {[%emt 0:00:30]} Re8 {[%emt 0:02:02]} 13. d4 {[%emt 0:01:47]} Be6 {[%emt 0:08:57]} 14. Bc2 {[%emt 0:06:05]} c6 {[%emt 0:01:53]} 15. Be3 {[%emt 0:01:19]} Qc7 {[%emt 0:06:16]} 16. a4 {[%emt 0:00:34]} a5 {[%emt 0:21:26]} 17. Bd3 {[%emt 0:10:26]} Rad8 {[%emt 0:11:59]} 18. Qc2 {[%emt 0:03:10]} Bb8 {[%emt 0:02:38]} 19. Rad1 {[%emt 0:17:43]} Qc8 {[%emt 0:03:31]} 20. dxe5 {[%emt 0:01:50]} dxe5 {[%emt 0:02:21]} 21. b4 {[%emt 0:03:35]} axb4 {[%emt 0:02:59]} 22. cxb4 {[%emt 0:01:47]} Bd6 {[%emt 0:00:05]} 23. Qb2 {[%emt 0:04:53]} Qc7 {[%emt 0:05:53]} 24. b5 {[%emt 0:01:51]} Ra8 {[%emt 0:02:18]} 25. Ra1 {[%emt 0:04:26]} cxb5 {[%emt 0:01:20]} 26. axb5 {[%emt 0:03:52]} Rxa1 {[%emt 0:01:14]} 27. Rxa1 {[%emt 0:00:15]} Qe7 {[%emt 0:01:47]} 28. b6 {[%emt 0:02:54]} Rd8 {[%emt 0:01:22]} 29. Bf1 {[%emt 0:00:51]} Kh7 {[%emt 0:05:43]} 30. Ra7 {[%emt 0:07:36]} Bb8 {[%emt 0:01:22]} 31. Ra5 {[%emt 0:00:08]} Kg8 {[%emt 0:01:00]} 32. Kh2 {[%emt 0:07:49]} Rc8 {[%emt 0:00:13]} 33. Ra8 {[%emt 0:01:42]} Bd6 {[%emt 0:00:31]} 34. Qa1 {[%emt 0:03:35]} Rxa8 {[%emt 0:00:29]} 35. Qxa8+ {[%emt 0:00:06]} Kh7 {[%emt 0:00:03]} 36. Kg1 {[%emt 0:01:17]} Qd7 {[%emt 0:01:11]} 37. Kh2 {[%emt 0:13:10]} Ne7 {[%emt 0:02:02]} 38. Qa1 {[%emt 0:04:52]} Ng6 {[%emt 0:00:15]} 39. Qc3 {[%emt 0:01:08]} Qa4 {[%emt 0:00:30]} 40. Nd2 {[%emt 0:00:17]} Qb4 {[%emt 0:00:45]} 41. Qxb4 {[%emt 0:51:44]} Bxb4 {[%emt 0:05:17]} 42. Nc4 {[%emt 0:00:00]} Nd7 {[%emt 0:08:44]} 43. Nf5 {[%emt 0:00:00]} Bxf5 {[%emt 0:05:57]} 44. exf5 {[%emt 0:00:00]} 1/2-1/2

[Event "FIDE Chesscom Grand Swiss 2019"]
[Site "Douglas-Isle of Man"]
[Date "2019.10.15"]
[Round "6.16"]
[White "Mamedov, Rauf"]
[Black "Artemiev, Vladislav"]
[Result "1/2-1/2"]
[ECO "B22"]
[WhiteElo "2645"]
[BlackElo "2746"]
[Annotator "ChessBase"]
[PlyCount "82"]
[EventDate "2019.10.10"]
[EventType "swiss"]
[EventCountry "GBR"]
[SourceTitle "playchess.com"]
[Source "ChessBase"]
[SourceQuality "1"]
[TimeControl "40/6000+30:20/3000+30:900+30"]

1. e4 {[%emt 0:00:00]} c5 {[%emt 0:00:00]} 2. c3 {[%emt 0:00:00]} d5 {[%emt 0:00:07]} 3. exd5 {[%emt 0:00:00]} Qxd5 {[%emt 0:00:13]} 4. d4 {[%emt 0:00:00]} Nf6 {[%emt 0:00:34]} 5. Nf3 {[%emt 0:00:10]} e6 {[%emt 0:00:39]} 6. Bd3 {[%emt 0:03:22]} Be7 {[%emt 0:00:22]} 7. Be3 {[%emt 0:00:37]} O-O {[%emt 0:08:24]} 8. O-O {[%emt 0:20:56]} b6 {[%emt 0:08:28]} 9. c4 {[%emt 0:03:26]} Qd8 {[%emt 0:02:18]} 10. dxc5 {[%emt 0:08:58]} Bxc5 {[%emt 0:01:55]} 11. Bxc5 {[%emt 0:06:14]} bxc5 {[%emt 0:00:13]} 12. Nc3 {[%emt 0:00:12]} Bb7 {[%emt 0:00:28]} 13. Qe2 {[%emt 0:00:42]} Qe7 {[%emt 0:28:15]} 14. Rad1 {[%emt 0:04:44]} Nc6 {[%emt 0:01:49]} 15. Bb1 {[%emt 0:05:37]} Rad8 {[%emt 0:02:43]} 16. Qe3 {[%emt 0:01:56]} Nb8 {[%emt 0:19:34]} 17. Ne5 {[%emt 0:12:13]} Qc7 {[%emt 0:05:39]} 18. h3 {[%emt 0:13:33]} h6 {[%emt 0:03:16]} 19. Rfe1 {[%emt 0:03:20]} Ba8 {[%emt 0:02:02]} 20. b3 {[%emt 0:02:04]} Qb7 {[%emt 0:03:27]} 21. Nf3 {[%emt 0:03:14]} Qb4 {[%emt 0:07:18]} 22. Ne5 {[%emt 0:05:10]} Qb7 {[%emt 0:03:07]} 23. f3 {[%emt 0:00:16]} Qc7 {[%emt 0:00:19]} 24. Nb5 {[%emt 0:05:38]} Qb6 {[%emt 0:01:32]} 25. Nc3 {[%emt 0:00:04]} Rd4 {[%emt 0:02:04]} 26. Na4 {[%emt 0:01:39]} Qd6 {[%emt 0:01:37]} 27. Bc2 {[%emt 0:02:07]} Na6 {[%emt 0:04:10]} 28. Nd3 {[%emt 0:01:07]} Rd8 {[%emt 0:01:49]} 29. Ndxc5 {[%emt 0:00:40]} Nxc5 {[%emt 0:00:13]} 30. Rxd4 {[%emt 0:00:04]} Qxd4 {[%emt 0:00:05]} 31. Qxd4 {[%emt 0:02:09]} Rxd4 {[%emt 0:00:05]} 32. Nxc5 {[%emt 0:00:02]} Rd2 {[%emt 0:00:06]} 33. Bb1 {[%emt 0:03:19]} g5 {[%emt 0:01:19]} 34. Nd3 {[%emt 0:01:42]} Nh5 {[%emt 0:00:47]} 35. Nf2 {[%emt 0:00:22]} Nf4 {[%emt 0:00:36]} 36. Kf1 {[%emt 0:01:04]} Kg7 {[%emt 0:01:22]} 37. Rc1 {[%emt 0:00:45]} f5 {[%emt 0:00:32]} 38. Rc2 {[%emt 0:00:19]} Rd8 {[%emt 0:00:43]} 39. Rc3 {[%emt 0:00:08]} Rd2 {[%emt 0:00:33]} 40. Rc2 {[%emt 0:00:04]} Rd8 {[%emt 0:00:28]} 41. Rc3 {[%emt 0:52:01]} Rd2 {[%emt 0:16:50]} 1/2-1/2

[Event "FIDE Chesscom Grand Swiss 2019"]
[Site "Douglas-Isle of Man"]
[Date "2019.10.15"]
[Round "6.18"]
[White "Svidler, Peter"]
[Black "Lupulescu, Constantin"]
[Result "1/2-1/2"]
[ECO "C02"]
[WhiteElo "2729"]
[BlackElo "2643"]
[Annotator "ChessBase"]
[PlyCount "142"]
[EventDate "2019.10.10"]
[EventType "swiss"]
[EventCountry "GBR"]
[SourceTitle "playchess.com"]
[Source "ChessBase"]
[SourceQuality "1"]
[TimeControl "40/6000+30:20/3000+30:900+30"]

1. e4 {[%emt 0:00:00]} e6 {[%emt 0:00:00]} 2. d4 {[%emt 0:00:00]} d5 {[%emt 0:00:00]} 3. e5 {[%emt 0:00:12]} c5 {[%emt 0:00:00]} 4. c3 {[%emt 0:00:05]} Nc6 {[%emt 0:00:00]} 5. Nf3 {[%emt 0:00:06]} Qb6 {[%emt 0:00:07]} 6. a3 {[%emt 0:00:14]} Bd7 {[%emt 0:00:28]} 7. b4 {[%emt 0:03:43]} cxd4 {[%emt 0:01:04]} 8. cxd4 {[%emt 0:00:02]} Rc8 {[%emt 0:00:21]} 9. Bb2 {[%emt 0:14:33]} Nge7 {[%emt 0:03:28]} 10. Qd2 {[%emt 0:16:44]} Nf5 {[%emt 0:08:32]} 11. g4 {[%emt 0:00:20]} Nh6 {[%emt 0:01:02]} 12. Rg1 {[%emt 0:00:50]} f6 {[%emt 0:07:42]} 13. exf6 {[%emt 0:01:32]} gxf6 {[%emt 0:01:13]} 14. Nc3 {[%emt 0:00:07]} Nf7 {[%emt 0:06:10]} 15. h4 {[%emt 0:11:25]} Ne7 {[%emt 0:08:21]} 16. Bd3 {[%emt 0:04:39]} Bg7 {[%emt 0:08:03]} 17. Ne2 {[%emt 0:10:28]} e5 {[%emt 0:08:35]} 18. dxe5 {[%emt 0:01:21]} fxe5 {[%emt 0:00:53]} 19. Nf4 {[%emt 0:01:39]} Rf8 {[%emt 0:10:15]} 20. g5 {[%emt 0:09:56]} d4 {[%emt 0:18:34]} 21. g6 {[%emt 0:11:22]} Bh6 {[%emt 0:01:14]} 22. gxf7+ {[%emt 0:01:38]} Rxf7 {[%emt 0:00:22]} 23. Nxe5 {[%emt 0:00:41]} Rxf4 {[%emt 0:00:50]} 24. Qe2 {[%emt 0:01:38]} Rxh4 {[%emt 0:06:12]} 25. Bxh7 {[%emt 0:07:51]} Bb5 {[%emt 0:03:01]} 26. Bd3 {[%emt 0:00:07]} Bxd3 {[%emt 0:00:42]} 27. Nxd3 {[%emt 0:00:13]} Rc6 {[%emt 0:03:35]} 28. Nc5 {[%emt 0:04:20]} Rg6 {[%emt 0:00:58]} 29. Rf1 {[%emt 0:00:52]} Qc6 {[%emt 0:02:37]} 30. Qd3 {[%emt 0:01:41]} b6 {[%emt 0:02:09]} 31. Nb3 {[%emt 0:00:02]} Qe6+ {[%emt 0:02:10]} 32. Kd1 {[%emt 0:00:02]} Rh3 {[%emt 0:00:04]} 33. Qb5+ {[%emt 0:00:24]} Kf8 {[%emt 0:01:09]} 34. Nxd4 {[%emt 0:00:21]} Qe4 {[%emt 0:01:23]} 35. f3 {[%emt 0:03:42]} Qf4 {[%emt 0:00:49]} 36. Qe2 {[%emt 0:01:42]} Rh2 {[%emt 0:01:14]} 37. Rf2 {[%emt 0:00:11]} Rh1+ {[%emt 0:00:51]} 38. Kc2 {[%emt 0:00:01]} Rxa1 {[%emt 0:00:10]} 39. Bxa1 {[%emt 0:02:14]} Qc1+ {[%emt 0:00:12]} 40. Kb3 {[%emt 0:00:02]} Qxa1 {[%emt 0:00:07]} 41. Qe4 {[%emt 0:51:01]} Qd1+ {[%emt 0:55:04]} 42. Ka2 {[%emt 0:01:08]} Rg1 {[%emt 0:00:00]} 43. Re2 {[%emt 0:00:00]} Qa1+ {[%emt 0:00:00]} 44. Kb3 {[%emt 0:00:00]} Qb1+ {[%emt 0:00:00]} 45. Ka4 {[%emt 0:00:00]} Qxe4 {[%emt 0:00:00]} 46. fxe4 {[%emt 0:00:00]} Rd1 {[%emt 0:00:00]} 47. Nb5 {[%emt 0:00:00]} Nc6 {[%emt 0:00:00]} 48. Rh2 {[%emt 0:00:00]} Kg7 {[%emt 0:00:00]} 49. Rc2 {[%emt 0:00:00]} Rc1 {[%emt 0:00:00]} 50. Rxc1 {[%emt 0:00:00]} Bxc1 {[%emt 0:00:00]} 51. Nd6 {[%emt 0:00:00]} Kf8 {[%emt 0:02:35]} 52. Kb5 {[%emt 0:00:00]} Nd4+ {[%emt 0:00:05]} 53. Kc4 {[%emt 0:00:00]} Nc6 {[%emt 0:00:49]} 54. Kb5 {[%emt 0:00:00]} Nd4+ {[%emt 0:00:04]} 55. Kc4 {[%emt 0:00:00]} Ne6 {[%emt 0:00:18]} 56. Nc8 {[%emt 0:00:00]} a6 {[%emt 0:02:08]} 57. Nxb6 {[%emt 0:00:00]} Bxa3 {[%emt 0:00:09]} 58. Kb3 {[%emt 0:00:00]} Bc1 {[%emt 0:00:13]} 59. Ka4 {[%emt 0:00:00]} Bd2 {[%emt 0:01:39]} 60. Ka5 {[%emt 0:00:00]} Nc5 {[%emt 0:00:21]} 61. Nd5 {[%emt 0:00:16]} Kf7 {[%emt 0:15:36]} 62. Nc7 {[%emt 0:00:53]} Nxe4 {[%emt 0:00:30]} 63. Nxa6 {[%emt 0:00:06]} Ke6 {[%emt 0:00:10]} 64. Kb5 {[%emt 0:00:06]} Kd5 {[%emt 0:00:17]} 65. Nc7+ {[%emt 0:00:10]} Kd4 {[%emt 0:00:09]} 66. Ne6+ {[%emt 0:00:06]} Ke5 {[%emt 0:00:06]} 67. Nc5 {[%emt 0:00:07]} Nd6+ {[%emt 0:00:07]} 68. Kc6 {[%emt 0:00:05]} Nf5 {[%emt 0:00:31]} 69. Nd7+ {[%emt 0:00:28]} Ke6 {[%emt 0:00:30]} 70. Nc5+ {[%emt 0:00:06]} Ke7 {[%emt 0:00:05]} 71. Nd3 {[%emt 0:00:08]} Nd4+ {[%emt 0:00:50]} 1/2-1/2